fUSD/lending_fUSD_20250812
["ID","MTS","AMOUNT","RATE_DAILY","PERIOD"]
[378758882,1755003122171,-400.0,0.00044657,120]
[378758883,1755003122180,-425.08,0.00044657,120]
[378758884,1755003122191,-400.0,0.00044657,120]
[378758885,1755003122201,-400.0,0.00044657,120]
[378758886,1755003122211,-400.0,0.00044657,120]
[378758887,1755003122221,-400.0,0.00044657,120]
[378758888,1755003122230,-485.48,0.00044657,120]
[378758889,1755003122239,-400.0,0.00044657,120]
[378758890,1755003122249,-400.0,0.00044657,120]
[378758891,1755003122258,-620.11,0.00044657,120]
[378758892,1755003122267,-422.97,0.00044657,120]
[378758893,1755003122277,-407.76,0.00044657,120]
[378758894,1755003122287,-400.0,0.00044657,120]
[378758895,1755003122296,-400.0,0.00044657,120]
[378758896,1755003122305,-473.91,0.00044657,120]
[378758897,1755003122317,-400.0,0.00044657,120]
[378758898,1755003122327,-429.54,0.00044657,120]
[378758899,1755003122337,-400.0,0.00044657,120]
[378758900,1755003122346,-400.0,0.00044657,120]
[378758901,1755003122355,-2095.41,0.00044657,120]
[378758902,1755003122365,-400.0,0.00044657,120]
[378758903,1755003122376,-803.63,0.00044657,120]
[378758904,1755003122386,-403.57,0.00044657,120]
[378758905,1755003122395,-432.23,0.00044657,120]
[378758906,1755003122405,-238.27842874,0.00044657,120]
[378758907,1755003122414,-400.0,0.00044657,120]
[378758908,1755003122424,-400.0,0.00044657,120]
[378758909,1755003122434,-181.26038788,0.00044657,120]
[378758910,1755003122443,-403.73,0.00044657,120]
[378758911,1755003122452,-506.69,0.00044657,120]
[378758912,1755003122462,-400.0,0.00044657,120]
[378758913,1755003122472,-400.0,0.00044657,120]
[378758914,1755003122482,-400.0,0.00044657,120]
[378758915,1755003122491,-400.0,0.00044657,120]
[378758916,1755003122501,-1369.1,0.00044657,120]
[378758917,1755003122511,-460.46,0.00044657,120]
[378758918,1755003122521,-1677.37,0.00044657,120]
[378758919,1755003122531,-400.0,0.00044657,120]
[378758920,1755003122541,-638.32,0.00044657,120]
[378758921,1755003122551,-400.0,0.00044657,120]
[378758922,1755003122562,-557.52,0.00044657,120]
[378758923,1755003122572,-720.04,0.00044657,120]
[378758924,1755003122582,-400.0,0.00044657,120]
[378758925,1755003122591,-1407.52,0.00044657,120]
[378758926,1755003122601,-400.0,0.00044657,120]
[378758927,1755003122611,-671.93,0.00044657,120]
[378758928,1755003122621,-535.29,0.00044657,120]
[378758929,1755003122633,-464.69299691,0.00044657,120]
[378758930,1755003122643,-537.89,0.00044657,120]
[378758931,1755003122653,-519.49,0.00044657,120]
[378758932,1755003122663,-641.09,0.00044657,120]
[378758933,1755003122674,-697.03,0.00044657,120]
[378758934,1755003122683,-740.0,0.00044657,120]
[378758935,1755003122694,-400.0,0.00044657,120]
[378758936,1755003122703,-494.78,0.00044657,120]
[378758937,1755003122714,-400.0,0.00044657,120]
[378758938,1755003122724,-400.0,0.00044657,120]
[378758939,1755003122733,-400.0,0.00044657,120]
[378758940,1755003122743,-695.15,0.00044657,120]
[378758941,1755003122752,-595.64,0.00044657,120]
[378758942,1755003122761,-705.13,0.00044657,120]
[378758943,1755003122771,-715.11,0.00044657,120]
[378758944,1755003122781,-469.65,0.00044657,120]
[378758945,1755003122790,-400.0,0.00044657,120]
[378758946,1755003122799,-400.0,0.00044657,120]
[378758947,1755003122809,-832.68,0.00044657,120]
[378758948,1755003122821,-549.29,0.00044657,120]
[378758949,1755003122830,-626.92,0.00044657,120]
[378758950,1755003122840,-400.0,0.00044657,60]
[378758951,1755003122849,-400.0,0.00044657,120]
[378758952,1755003122859,-435.17,0.00044657,120]
[378758953,1755003122868,-400.0,0.00044657,120]
[378758954,1755003122878,-400.0,0.00044657,120]
[378758955,1755003122888,-400.0,0.00044657,120]
[378758956,1755003122897,-747.94,0.00044657,120]
[378758957,1755003122906,-400.0,0.00044657,120]
[378758958,1755003122915,-400.0,0.00044657,120]
[378758959,1755003122924,-521.04184957,0.00044657,120]
[378758960,1755003122934,-508.17,0.00044657,120]
[378758961,1755003122943,-258.3037616,0.00044657,120]
[378758962,1755003122952,-400.0,0.00044657,120]
[378758963,1755003122961,-493.89,0.00044657,120]
[378758964,1755003122970,-569.03,0.00044657,120]
[378758965,1755003122979,-347.21390074,0.00044657,120]
[378758966,1755003122989,-400.0,0.00044657,120]
[378758967,1755003122998,-219.51292737,0.00044657,120]
[378758968,1755003123124,-400.0,0.00042191,30]
[378758969,1755003123143,-1085.16707263,0.00044657,120]
[378758970,1755003123155,-32.47973217,0.00044657,120]
[378758971,1755003123167,-440.23026783,0.00044657,120]
[378758972,1755003123177,-65.76973217,0.00044657,120]
[378758973,1755003123205,-888.0,0.00041595,3]
[378758974,1755003123215,-400.0,0.00041917,30]
[378758975,1755003123224,-400.0,0.00042465,30]
[378758976,1755003123234,-1776.0,0.00043835,3]
[378758977,1755003123243,-334.23026783,0.00044657,120]
[378758978,1755003123253,-485.21,0.00044657,120]
[378758979,1755003123263,-1427.73,0.00044657,120]
[378758980,1755003123272,-400.0,0.00044657,120]
[378758981,1755003123282,-400.0,0.00044657,120]
[378758982,1755003123292,-400.0,0.00044657,120]
[378758983,1755003123301,-400.0,0.00044657,120]
[378758984,1755003123311,-400.0,0.00044657,120]
[378758985,1755003123322,-668.75,0.00044657,120]
[378758986,1755003123331,-400.0,0.00044657,120]
[378758987,1755003123341,-1550.59,0.00044657,120]
[378758988,1755003123351,-400.0,0.00044657,120]
[378758989,1755003123360,-400.0,0.00044657,120]
[378758990,1755003123371,-2263.04,0.00044657,120]
[378758991,1755003123380,-517.14,0.00044657,120]
[378758992,1755003123390,-335.56216932,0.00044657,120]
[378758993,1755003123399,-598.88051492,0.00044657,2]
[378758994,1755003123408,-416.76,0.00044657,120]
[378758995,1755003123418,-606.34,0.00044657,7]
[378758996,1755003123427,-801.81,0.00044657,120]
[378758997,1755003123437,-1058.21,0.00044657,120]
[378758998,1755003123447,-400.0,0.00044657,120]
[378758999,1755003123456,-463.53,0.00044657,120]
[378759000,1755003123466,-400.0,0.00044657,120]
[378759001,1755003123475,-400.0,0.00044657,120]
[378759002,1755003123485,-400.0,0.00044657,120]
[378759003,1755003123496,-661.34,0.00044657,120]
[378759004,1755003123506,-400.0,0.00044657,120]
[378759005,1755003123516,-453.89,0.00044657,120]
[378759006,1755003123526,-3468.76,0.00044657,120]
[378759007,1755003123535,-747.81,0.00044657,120]
[378759008,1755003123545,-413.27,0.00044657,120]
[378759009,1755003123555,-689.53,0.00044657,120]
[378759010,1755003123566,-567.5,0.00044657,120]
[378759011,1755003123576,-414.54,0.00044657,120]
[378759012,1755003123586,-400.0,0.00044657,120]
[378759013,1755003123597,-3359.66,0.00044657,120]
[378759014,1755003123607,-190.31565715,0.00044657,120]
[378759015,1755003123618,-449.21,0.00044657,120]
[378759016,1755003123629,-704.22,0.00044657,120]
[378759017,1755003123641,-400.0,0.00044657,120]
[378759018,1755003123651,-400.0,0.00044657,120]
[378759019,1755003123661,-632.29,0.00044657,120]
[378759020,1755003123672,-466.87,0.00044657,120]
[378759021,1755003123682,-494.37,0.00044657,120]
[378759022,1755003123692,-400.0,0.00044657,120]
[378759023,1755003123701,-400.0,0.00044657,120]
[378759024,1755003123710,-601.38,0.00044657,120]
[378759025,1755003123720,-400.0,0.00044657,120]
[378759026,1755003123730,-710.1,0.00044657,120]
[378759027,1755003123740,-400.0,0.00044657,120]
[378759028,1755003123749,-929.42,0.00044657,120]
[378759029,1755003123758,-654.03,0.00044657,120]
[378759030,1755003123768,-400.0,0.00044657,120]
[378759031,1755003123776,-400.0,0.00044657,120]
[378759032,1755003123786,-727.2,0.00044657,120]
[378759033,1755003123795,-683.7,0.00044657,120]
[378759034,1755003123804,-1130.55,0.00044657,120]
[378759035,1755003123815,-400.0,0.00044657,120]
[378759036,1755003123825,-400.0,0.00044657,120]
[378759037,1755003123835,-400.0,0.00044657,120]
[378759038,1755003123845,-693.76,0.00044657,120]
[378759039,1755003123855,-400.0,0.00044657,120]
[378759040,1755003123865,-765.99,0.00044657,120]
[378759041,1755003123875,-2521.4,0.00044657,120]
[378759042,1755003123884,-408.27,0.00044657,120]
[378759043,1755003123893,-400.0,0.00044657,120]
[378759044,1755003123906,-674.11,0.00044657,120]
[378759045,1755003123915,-463.15,0.00044657,120]
[378759046,1755003123925,-515.85,0.00044657,120]
[378759047,1755003123934,-400.0,0.00044657,14]
[378759048,1755003123943,-400.0,0.00044657,120]
[378759049,1755003123953,-400.0,0.00044657,120]
[378759050,1755003123962,-726.38,0.00044657,120]
[378759051,1755003123972,-400.0,0.00044657,120]
[378759052,1755003123981,-400.0,0.00044657,120]
[378759053,1755003123990,-1713.36,0.00044657,120]
[378759054,1755003123999,-564.91,0.00044657,120]
[378759055,1755003124009,-576.83,0.00044657,120]
[378759056,1755003124018,-461.85,0.00044657,120]
[378759057,1755003124028,-622.29,0.00044657,120]
[378759058,1755003124037,-558.07,0.00044657,120]
[378759059,1755003124047,-400.0,0.00044657,120]
[378759060,1755003124057,-400.0,0.00044657,120]
[378759061,1755003124067,-400.0,0.00044657,120]
[378759062,1755003124076,-400.0,0.00044657,120]
[378759063,1755003124086,-756.4,0.00044657,120]
[378759064,1755003124095,-400.0,0.00044657,120]
[378759065,1755003124109,-471.31,0.00044657,120]
[378759066,1755003124118,-462.1,0.00044657,120]
[378759067,1755003124128,-400.0,0.00044657,120]
[378759068,1755003124138,-400.0,0.00044657,120]
[378759069,1755003124148,-555.74,0.00044657,120]
[378759070,1755003124158,-740.93,0.00044657,120]
[378759071,1755003124167,-440.15,0.00044657,120]
[378759072,1755003124177,-400.0,0.00044657,120]
[378759073,1755003124187,-413.22,0.00044657,120]
[378759074,1755003124197,-400.0,0.00044657,120]
[378759075,1755003124206,-500.0,0.00044675,120]
[378759076,1755003124216,-52972.19139078,0.00044676,120]
[378759077,1755003124229,-23013.91534605,0.00044676,120]
[378759078,1755003124241,-852.04189305,0.00044676,120]
[378759079,1755003124253,-8776.73127998,0.00044676,120]
[378759080,1755003124414,-4450.0,0.00044676,120]
[378759099,1755003758973,150.0,1.22e-06,120]
[378759100,1755003821642,150.0,1.22e-06,120]
[378759103,1755004011138,-173.33661199,0.00025038,2]
[378759115,1755004232229,-361.35121152,0.00025038,2]
[378759116,1755004232283,-534.78817649,0.00025038,2]
[378759117,1755004232292,-196.65210792,0.00025038,2]
[378759118,1755004232302,-250.0,0.00027542,2]
[378759119,1755004232312,-900.0,0.00028,2]
[378759120,1755004232321,-398.41,0.00028879,30]
[378759121,1755004232331,-1000.0,0.00029,3]
[378759122,1755004232340,-398.41,0.00031373,30]
[378759123,1755004232350,-180.0,0.000319,2]
[378759124,1755004232359,-519.0,0.00032195,2]
[378759125,1755004232368,-150.27,0.00033712,2]
[378759126,1755004232377,-398.41,0.00033867,30]
[378759127,1755004232387,-519.0,0.00035671,9]
[378759128,1755004232396,-398.41,0.00036361,60]
[378759129,1755004232405,-174.38,0.00037158,30]
[378759130,1755004232415,-154.0,0.00038,120]
[378759131,1755004232425,-191.56050538,0.00038484,2]
[378759132,1755004232434,-704.02294438,0.00038484,2]
[378759133,1755004232443,-254.0,0.000387,5]
[378759134,1755004232453,-168.21516129,0.00038754,81]
[378759135,1755004232463,-398.41,0.00038854,60]
[378759136,1755004232472,-614.01,0.00038918,2]
[378759137,1755004232484,-166.96,0.00039107,2]
[378759138,1755004232494,-519.0,0.00039146,16]
[378759139,1755004232504,-1600.0,0.00039207,5]
[378759140,1755004232514,-400.0,0.00039207,5]
[378759141,1755004232523,-3158.97,0.00039208,34]
[378759142,1755004232533,-186.55,0.00039301,120]
[378759143,1755004232542,-666.0,0.00039347,3]
[378759144,1755004232554,-4837.072,0.00039378,2]
[378759145,1755004232564,-1000.0,0.00039383,2]
[378759146,1755004232574,-523.01,0.00039431,2]
[378759147,1755004232583,-168.72,0.00039562,2]
[378759148,1755004232593,-5000.0,0.00039569,120]
[378759149,1755004232602,-317.77,0.0004,30]
[378759150,1755004232612,-154.0,0.000401,120]
[378759151,1755004232621,-167.26,0.00040607,2]
[378759152,1755004232631,-1002.95216056,0.00040694,3]
[378759154,1755004232640,-664.463,0.00040694,58]
[378759156,1755004232649,-75769.0289,0.00040695,2]
[378759158,1755004232659,-1000.0,0.00040695,2]
[378759160,1755004232669,-2720.11,0.00040771,2]
[378759162,1755004232679,-2500.0,0.00040895,2]
[378759164,1755004232688,-1243.371171,0.00040973,15]
[378759166,1755004232698,-500.0,0.00041073,5]
[378759168,1755004232708,-500.0,0.00041073,5]
[378759170,1755004232717,-988.46,0.00041085,2]
[378759172,1755004232728,-268.653618,0.00041095,30]
[378759174,1755004232738,-157.703964,0.00041095,30]
[378759176,1755004232747,-275.364562,0.00041095,30]
[378759178,1755004232757,-400.0,0.00041095,30]
[378759180,1755004232766,-400.0,0.00041095,30]
[378759182,1755004232775,-400.0,0.00041095,30]
[378759184,1755004232784,-400.0,0.00041095,30]
[378759186,1755004232794,-400.0,0.00041095,30]
[378759188,1755004232806,-425.61929967,0.00041095,30]
[378759190,1755004232815,-400.0,0.00041095,30]
[378759192,1755004232824,-400.0,0.00041095,30]
[378759194,1755004232834,-400.0,0.00041095,30]
[378759196,1755004232843,-400.0,0.00041095,30]
[378759198,1755004232853,-485.50912833,0.00041095,30]
[378759200,1755004232862,-400.0,0.00041095,30]
[378759201,1755004232872,-400.0,0.00041095,30]
[378759203,1755004232881,-400.0,0.00041095,30]
[378759205,1755004232891,-400.0,0.00041095,30]
[378759207,1755004232900,-873.09,0.00041095,30]
[378759209,1755004232909,-400.0,0.00041095,30]
[378759211,1755004232919,-400.0,0.00041095,30]
[378759213,1755004232928,-400.0,0.00041095,30]
[378759215,1755004232937,-400.0,0.00041095,30]
[378759217,1755004232947,-400.0,0.00041095,30]
[378759219,1755004232956,-400.0,0.00041095,30]
[378759221,1755004232966,-400.0,0.00041095,30]
[378759223,1755004232978,-400.0,0.00041095,30]
[378759226,1755004232987,-400.0,0.00041095,30]
[378759228,1755004232996,-400.0,0.00041095,30]
[378759229,1755004233006,-400.0,0.00041095,30]
[378759231,1755004233016,-400.0,0.00041095,30]
[378759233,1755004233025,-400.0,0.00041095,30]
[378759235,1755004233035,-400.23,0.00041095,30]
[378759237,1755004233044,-400.0,0.00041095,30]
[378759239,1755004233054,-400.0,0.00041095,30]
[378759241,1755004233065,-400.0,0.00041095,30]
[378759243,1755004233077,-400.0,0.00041095,30]
[378759245,1755004233087,-400.0,0.00041095,30]
[378759246,1755004233096,-400.0,0.00041095,30]
[378759248,1755004233106,-400.0,0.00041095,30]
[378759250,1755004233116,-400.0,0.00041095,30]
[378759252,1755004233126,-400.0,0.00041095,30]
[378759254,1755004233136,-400.0,0.00041095,30]
[378759256,1755004233146,-400.0,0.00041095,30]
[378759258,1755004233155,-254.13716612,0.00041095,30]
[378759260,1755004233165,-400.0,0.00041095,30]
[378759262,1755004233175,-400.0,0.00041095,30]
[378759264,1755004233185,-400.0,0.00041095,30]
[378759267,1755004233194,-400.0,0.00041095,30]
[378759268,1755004233204,-400.0,0.00041095,30]
[378759271,1755004233213,-400.0,0.00041095,30]
[378759273,1755004233224,-400.0,0.00041095,30]
[378759274,1755004233234,-400.0,0.00041095,30]
[378759276,1755004233244,-400.0,0.00041095,30]
[378759278,1755004233253,-400.0,0.00041095,30]
[378759280,1755004233262,-400.0,0.00041095,30]
[378759282,1755004233272,-416.02,0.00041095,30]
[378759284,1755004233281,-473.28,0.00041095,30]
[378759286,1755004233291,-586.46,0.00041095,30]
[378759288,1755004233300,-400.0,0.00041095,30]
[378759290,1755004233309,-379.26308247,0.00041095,30]
[378759292,1755004233319,-400.0,0.00041095,30]
[378759294,1755004233328,-400.0,0.00041095,30]
[378759295,1755004233338,-1996.28,0.00041095,30]
[378759296,1755004233348,-400.0,0.00041095,30]
[378759297,1755004233357,-400.0,0.00041095,30]
[378759298,1755004233367,-400.0,0.00041095,30]
[378759299,1755004233376,-400.0,0.00041095,30]
[378759300,1755004233386,-400.0,0.00041095,30]
[378759301,1755004233395,-400.0,0.00041095,30]
[378759302,1755004233404,-511.0907136,0.00041095,30]
[378759303,1755004233413,-400.0,0.00041095,30]
[378759304,1755004233423,-400.0,0.00041095,30]
[378759305,1755004233432,-400.0,0.00041095,30]
[378759306,1755004233441,-400.0,0.00041095,30]
[378759307,1755004233451,-400.0,0.00041095,30]
[378759308,1755004233460,-400.0,0.00041095,30]
[378759309,1755004233469,-400.0,0.00041095,30]
[378759310,1755004233480,-400.0,0.00041095,30]
[378759311,1755004233489,-400.0,0.00041095,30]
[378759312,1755004233500,-400.0,0.00041095,30]
[378759313,1755004233509,-400.0,0.00041095,30]
[378759314,1755004233518,-400.0,0.00041095,30]
[378759315,1755004233528,-400.0,0.00041095,30]
[378759316,1755004233537,-400.0,0.00041095,30]
[378759317,1755004233547,-400.0,0.00041095,30]
[378759318,1755004233556,-400.0,0.00041095,30]
[378759319,1755004233566,-400.0,0.00041095,30]
[378759320,1755004233575,-400.0,0.00041095,30]
[378759321,1755004233584,-400.0,0.00041095,30]
[378759322,1755004233594,-400.0,0.00041095,30]
[378759323,1755004233603,-400.0,0.00041095,30]
[378759324,1755004233612,-400.0,0.00041095,30]
[378759325,1755004233622,-1210.58,0.00041095,30]
[378759326,1755004233631,-213.43901089,0.00041095,30]
[378759327,1755004233641,-400.0,0.00041095,30]
[378759328,1755004233650,-400.0,0.00041095,30]
[378759329,1755004233660,-400.0,0.00041095,30]
[378759330,1755004233669,-400.0,0.00041095,30]
[378759331,1755004233678,-400.0,0.00041095,30]
[378759332,1755004233687,-400.0,0.00041095,30]
[378759333,1755004233697,-400.0,0.00041095,30]
[378759334,1755004233706,-400.0,0.00041095,30]
[378759335,1755004233716,-400.0,0.00041095,30]
[378759336,1755004233727,-400.0,0.00041095,30]
[378759337,1755004233736,-400.0,0.00041095,30]
[378759338,1755004233745,-400.0,0.00041095,30]
[378759339,1755004233756,-400.0,0.00041095,30]
[378759340,1755004233765,-400.0,0.00041095,30]
[378759341,1755004233775,-280.98823514,0.00041095,30]
[378759342,1755004233785,-400.0,0.00041095,30]
[378759343,1755004233794,-409.46857185,0.00041095,30]
[378759344,1755004233803,-200.59615789,0.00041095,30]
[378759345,1755004233812,-400.0,0.00041095,30]
[378759346,1755004233822,-400.0,0.00041095,30]
[378759347,1755004233831,-400.0,0.00041095,30]
[378759348,1755004233841,-400.0,0.00041095,30]
[378759349,1755004233850,-400.0,0.00041095,30]
[378759350,1755004233860,-400.0,0.00041095,30]
[378759351,1755004233870,-400.0,0.00041095,30]
[378759352,1755004233880,-457.19489573,0.00041095,30]
[378759353,1755004233890,-400.0,0.00041095,30]
[378759354,1755004233900,-400.0,0.00041095,30]
[378759355,1755004233910,-400.0,0.00041095,30]
[378759356,1755004233919,-400.0,0.00041095,30]
[378759357,1755004233970,-400.0,0.00041095,30]
[378759358,1755004233981,-400.0,0.00041095,30]
[378759359,1755004233991,-400.0,0.00041095,30]
[378759360,1755004234000,-400.0,0.00041095,30]
[378759361,1755004234010,-400.0,0.00041095,30]
[378759362,1755004234019,-400.0,0.00041095,30]
[378759363,1755004234029,-400.0,0.00041095,30]
[378759364,1755004234039,-400.0,0.00041095,30]
[378759365,1755004234048,-400.0,0.00041095,30]
[378759366,1755004234058,-400.0,0.00041095,30]
[378759367,1755004234070,-179.215871,0.00041095,30]
[378759368,1755004234080,-400.0,0.00041095,30]
[378759369,1755004234090,-400.0,0.00041095,30]
[378759370,1755004234100,-400.0,0.00041095,30]
[378759371,1755004234110,-400.0,0.00041095,30]
[378759372,1755004234120,-400.0,0.00041095,30]
[378759373,1755004234130,-400.0,0.00041095,30]
[378759374,1755004234141,-400.0,0.00041095,30]
[378759375,1755004234150,-400.0,0.00041095,30]
[378759376,1755004234160,-400.0,0.00041095,30]
[378759377,1755004234170,-400.0,0.00041095,30]
[378759378,1755004234180,-400.0,0.00041095,30]
[378759379,1755004234189,-400.0,0.00041095,30]
[378759380,1755004234199,-400.0,0.00041095,30]
[378759381,1755004234209,-400.0,0.00041095,30]
[378759382,1755004234219,-400.0,0.00041095,30]
[378759383,1755004234231,-400.0,0.00041095,30]
[378759384,1755004234240,-400.0,0.00041095,30]
[378759385,1755004234250,-452.83985644,0.00041095,30]
[378759386,1755004234259,-400.0,0.00041095,30]
[378759387,1755004234269,-400.0,0.00041095,30]
[378759388,1755004234279,-400.0,0.00041095,30]
[378759389,1755004234289,-400.0,0.00041095,30]
[378759390,1755004234299,-400.0,0.00041095,30]
[378759391,1755004234308,-400.0,0.00041095,30]
[378759392,1755004234317,-400.0,0.00041095,30]
[378759393,1755004234326,-400.0,0.00041095,30]
[378759394,1755004234336,-400.0,0.00041095,30]
[378759395,1755004234345,-440.92,0.00041095,30]
[378759396,1755004234355,-400.0,0.00041095,30]
[378759397,1755004234364,-400.0,0.00041095,30]
[378759398,1755004234373,-400.0,0.00041095,30]
[378759399,1755004234383,-1445.32,0.00041095,30]
[378759400,1755004234391,-400.0,0.00041095,30]
[378759401,1755004234400,-400.0,0.00041095,30]
[378759402,1755004234410,-400.0,0.00041095,30]
[378759403,1755004234419,-400.0,0.00041095,30]
[378759404,1755004234428,-942.94,0.00041095,30]
[378759405,1755004234438,-400.0,0.00041095,30]
[378759406,1755004234447,-238.37811587,0.00041095,30]
[378759407,1755004234456,-400.0,0.00041095,30]
[378759408,1755004234466,-400.0,0.00041095,30]
[378759409,1755004234476,-400.0,0.00041095,30]
[378759410,1755004234486,-400.0,0.00041095,30]
[378759411,1755004234495,-400.0,0.00041095,30]
[378759412,1755004234505,-400.0,0.00041095,30]
[378759413,1755004234514,-400.0,0.00041095,30]
[378759414,1755004234523,-474.77,0.00041095,30]
[378759415,1755004234532,-400.0,0.00041095,30]
[378759416,1755004234542,-400.0,0.00041095,30]
[378759417,1755004234551,-400.0,0.00041095,30]
[378759418,1755004234561,-594.89,0.00041095,30]
[378759419,1755004234570,-400.0,0.00041095,30]
[378759420,1755004234580,-400.0,0.00041095,30]
[378759421,1755004234589,-946.3,0.00041095,30]
[378759422,1755004234599,-400.0,0.00041095,30]
[378759423,1755004234609,-400.0,0.00041095,30]
[378759424,1755004234619,-400.0,0.00041095,30]
[378759425,1755004234628,-400.0,0.00041095,30]
[378759426,1755004234637,-400.0,0.00041095,30]
[378759427,1755004234648,-400.0,0.00041095,30]
[378759428,1755004234658,-400.0,0.00041095,30]
[378759429,1755004234667,-400.0,0.00041095,30]
[378759430,1755004234677,-400.0,0.00041095,30]
[378759431,1755004234687,-886.95,0.00041095,30]
[378759432,1755004234696,-400.0,0.00041095,30]
[378759433,1755004234713,-400.0,0.00041095,30]
[378759434,1755004234727,-400.0,0.00041095,30]
[378759435,1755004234736,-400.0,0.00041095,30]
[378759436,1755004234745,-400.0,0.00041095,30]
[378759437,1755004234754,-400.0,0.00041095,30]
[378759438,1755004234763,-400.0,0.00041095,30]
[378759439,1755004234772,-400.0,0.00041095,30]
[378759440,1755004234782,-400.0,0.00041095,30]
[378759441,1755004234791,-400.0,0.00041095,30]
[378759442,1755004234799,-400.0,0.00041095,30]
[378759443,1755004234809,-400.0,0.00041095,30]
[378759444,1755004234818,-646.08,0.00041095,30]
[378759445,1755004234828,-400.0,0.00041095,30]
[378759446,1755004234838,-400.0,0.00041095,30]
[378759447,1755004234848,-400.0,0.00041095,30]
[378759448,1755004234856,-400.0,0.00041095,30]
[378759449,1755004234865,-400.0,0.00041095,30]
[378759450,1755004234875,-400.0,0.00041095,30]
[378759451,1755004234884,-400.0,0.00041095,30]
[378759452,1755004234894,-400.0,0.00041095,30]
[378759453,1755004234904,-400.0,0.00041095,30]
[378759454,1755004234913,-400.0,0.00041095,30]
[378759455,1755004234923,-400.0,0.00041095,30]
[378759456,1755004234933,-525.29840285,0.00041095,30]
[378759457,1755004234942,-400.0,0.00041095,30]
[378759458,1755004234951,-400.0,0.00041095,30]
[378759459,1755004234960,-400.0,0.00041095,30]
[378759460,1755004234969,-400.0,0.00041095,30]
[378759461,1755004234980,-400.0,0.00041095,30]
[378759462,1755004234990,-400.0,0.00041095,30]
[378759463,1755004234999,-400.0,0.00041095,30]
[378759464,1755004235008,-400.0,0.00041095,30]
[378759465,1755004235017,-400.0,0.00041095,30]
[378759466,1755004235027,-460.0,0.00041095,30]
[378759467,1755004235036,-400.0,0.00041095,30]
[378759468,1755004235046,-1283.2,0.00041095,30]
[378759469,1755004235055,-400.0,0.00041095,7]
[378759470,1755004235065,-400.0,0.00041095,30]
[378759471,1755004235076,-549.6738432,0.00041095,30]
[378759472,1755004235085,-400.0,0.00041095,30]
[378759473,1755004235094,-400.0,0.00041095,30]
[378759474,1755004235104,-400.0,0.00041095,30]
[378759475,1755004235113,-400.0,0.00041095,30]
[378759476,1755004235122,-448.49597205,0.00041095,30]
[378759477,1755004235131,-400.0,0.00041095,30]
[378759478,1755004235141,-400.0,0.00041095,30]
[378759479,1755004235150,-400.0,0.00041095,30]
[378759480,1755004235160,-400.0,0.00041095,30]
[378759481,1755004235169,-400.0,0.00041095,30]
[378759482,1755004235178,-400.0,0.00041095,30]